Department Family,Entity,Date,Expense type,Expense area,Supplier,Transaction number,Amount in sterling �s (Incl VAT),Supplier VAT registration number
NHS,Glos Hospitals NHS Foundation Trust,08/05/19,Finished processed goods,Inventories,Novartis Pharmaceuticals UK Limited,10219-14,"44,429.28",
NHS,Glos Hospitals NHS Foundation Trust,08/05/19,Finished processed goods,Inventories,Aah Pharmaceuticals Limited,10229-39,"48,523.68",
NHS,Glos Hospitals NHS Foundation Trust,08/05/19,Finished processed goods,Inventories,Roche Products Limited,10230-43,"33,142.73",
NHS,Glos Hospitals NHS Foundation Trust,14/05/19,Finished processed goods,Inventories,Novartis Pharmaceuticals UK Limited,10231-19,"38,465.28",
NHS,Glos Hospitals NHS Foundation Trust,14/05/19,Finished processed goods,Inventories,Qualasept Ltd t/a Bath ASU,10231-34,"67,199.04",
NHS,Glos Hospitals NHS Foundation Trust,14/05/19,Finished processed goods,Inventories,Roche Products Limited,10231-43,"46,521.60",
NHS,Glos Hospitals NHS Foundation Trust,14/05/19,Finished processed goods,Inventories,Qualasept Ltd t/a Bath ASU,10232-36,"55,545.72",
NHS,Glos Hospitals NHS Foundation Trust,14/05/19,Finished processed goods,Inventories,Bayer,10232-9,"31,464.00",
NHS,Glos Hospitals NHS Foundation Trust,14/05/19,Finished processed goods,Inventories,Bayer,10235-17,"31,464.00",
NHS,Glos Hospitals NHS Foundation Trust,14/05/19,Finished processed goods,Inventories,Bristol Myers Squibb Pharmaceuticals Limited,10236-44,"35,370.00",
NHS,Glos Hospitals NHS Foundation Trust,14/05/19,Finished processed goods,Inventories,Janssen Cilag Limited,10236-48,"58,976.76",
NHS,Glos Hospitals NHS Foundation Trust,14/05/19,Finished processed goods,Inventories,Aah Pharmaceuticals Limited,10237-31,"56,610.96",
NHS,Glos Hospitals NHS Foundation Trust,29/05/19,Finished processed goods,Inventories,Bayer,10248-11,"31,464.00",
NHS,Glos Hospitals NHS Foundation Trust,21/05/19,Finished processed goods,Inventories,Janssen Cilag Limited,10248-41,"36,594.24",
NHS,Glos Hospitals NHS Foundation Trust,21/05/19,Finished processed goods,Inventories,Bayer,10248-9,"31,464.00",
NHS,Glos Hospitals NHS Foundation Trust,21/05/19,Finished processed goods,Inventories,Bristol Myers Squibb Pharmaceuticals Limited,10249-18,"30,806.10",
NHS,Glos Hospitals NHS Foundation Trust,29/05/19,Finished processed goods,Inventories,Novartis Pharmaceuticals UK Limited,10252-21,"39,642.34",
NHS,Glos Hospitals NHS Foundation Trust,08/05/19,Finished processed goods,Inventories,Novartis Pharmaceuticals UK Limited,24937-14,"58,741.42",
NHS,Glos Hospitals NHS Foundation Trust,08/05/19,Finished processed goods,Inventories,Alloga UK Limited,24938-3,"27,000.00",
NHS,Glos Hospitals NHS Foundation Trust,08/05/19,Finished processed goods,Inventories,Alloga UK Limited,24938-4,"36,000.00",
NHS,Glos Hospitals NHS Foundation Trust,08/05/19,Finished processed goods,Inventories,Alloga UK Limited,24942-4,"27,120.00",
NHS,Glos Hospitals NHS Foundation Trust,08/05/19,Finished processed goods,Inventories,Bayer,24972-9,"52,440.00",
NHS,Glos Hospitals NHS Foundation Trust,08/05/19,Finished processed goods,Inventories,Genzyme Therapeutics,24973-12,"84,540.00",
NHS,Glos Hospitals NHS Foundation Trust,14/05/19,Finished processed goods,Inventories,Alloga UK Limited,24975-4,"27,120.00",
NHS,Glos Hospitals NHS Foundation Trust,14/05/19,Finished processed goods,Inventories,Novartis Pharmaceuticals UK Limited,24989-11,"48,092.82",
NHS,Glos Hospitals NHS Foundation Trust,14/05/19,Finished processed goods,Inventories,Bayer,24996-11,"52,440.00",
NHS,Glos Hospitals NHS Foundation Trust,29/05/19,Finished processed goods,Inventories,Alloga UK Limited,25022-10,"27,000.00",
NHS,Glos Hospitals NHS Foundation Trust,29/05/19,Finished processed goods,Inventories,Alloga UK Limited,25068-17,"27,120.00",
NHS,Glos Hospitals NHS Foundation Trust,21/05/19,Finished processed goods,Inventories,Bayer,25106-4,"52,440.00",
NHS,Glos Hospitals NHS Foundation Trust,21/05/19,Passthrough Drugs - High Cost Blood Products,Blood Products,Shire Pharmaceuticals Limited,729132,"85,190.00",
NHS,Glos Hospitals NHS Foundation Trust,14/05/19,Regular recharges,Scheduled Recharges from NPX,Gloucestershire Care Services NHS Trust,731457,"115,712.43",
NHS,Glos Hospitals NHS Foundation Trust,08/05/19,Regular recharges,Scheduled Recharges from NPX,Gloucestershire Care Services NHS Trust,731458,"105,189.52",
NHS,Glos Hospitals NHS Foundation Trust,08/05/19,Regular recharges,Scheduled Recharges from NPX,Gloucestershire Care Services NHS Trust,731459,"631,500.00",
NHS,Glos Hospitals NHS Foundation Trust,21/05/19,Regular recharges,Scheduled Recharges from NPX,Gloucestershire Care Services NHS Trust,731461,"140,126.56",
NHS,Glos Hospitals NHS Foundation Trust,21/05/19,Regular recharges,Scheduled Recharges from NPX,Gloucestershire Care Services NHS Trust,731462,"106,087.78",
NHS,Glos Hospitals NHS Foundation Trust,08/05/19,Purchase Computers/Systems,Capital Project Control,TET Limited t/a Trans Euopean Technology,731595,"82,647.27",
NHS,Glos Hospitals NHS Foundation Trust,21/05/19,Medical & Surgical Equipment Maintenance Contracts,General Theatre 1 - Non Pay only,Supply Chain Coordination Ltd - Maint. (201),731658,"61,177.70",
NHS,Glos Hospitals NHS Foundation Trust,21/05/19,Medical & Surgical Equipment Maintenance Contracts,Endoscopy - GRH,Supply Chain Coordination Ltd - Maint. (201),731661,"109,366.70",
NHS,Glos Hospitals NHS Foundation Trust,08/05/19,Medical & Surgical Equipment Maintenance Contracts,Other Medical-Radiology-CGH,Supply Chain Coordination Ltd - Maint. (201),731667,"59,627.66",
NHS,Glos Hospitals NHS Foundation Trust,08/05/19,NHS Logistics control,Payables - Manual,Supply Chain Coordination Ltd - Consumables,732517,"78,714.99",
NHS,Glos Hospitals NHS Foundation Trust,08/05/19,Prescribing Control,Payables - Manual,HA79125 NHSBSA,733189,"80,771.85",
NHS,Glos Hospitals NHS Foundation Trust,08/05/19,Medical & Surgical Equipment Maintenance Contracts,Radiography,Supply Chain Coordination Ltd - Maint. (201),733669,"50,560.80",
NHS,Glos Hospitals NHS Foundation Trust,08/05/19,Computer Software / License  Fees,Computing - CGH HQ,EntServ UK Limited,733762,"151,106.89",
NHS,Glos Hospitals NHS Foundation Trust,29/05/19,Laboratory Reagents,Blood Transfusion  trustwide - NONPAY,IBG Immucor,733870,"57,101.27",
NHS,Glos Hospitals NHS Foundation Trust,14/05/19,Fresh Blood & Plasma Products,Blood Products,HA73961 NHS Blood & Transplant,733876,"69,112.53",
NHS,Glos Hospitals NHS Foundation Trust,14/05/19,Fresh Blood & Plasma Products,Blood Products,HA73961 NHS Blood & Transplant,733879,"77,930.99",
NHS,Glos Hospitals NHS Foundation Trust,08/05/19,Passthrough Drugs - High Cost Blood Products,Blood Products,CSL Behring UK Limited,733991,"40,300.00",
NHS,Glos Hospitals NHS Foundation Trust,08/05/19,Computer Maintenance,IT Contracts Shared Service,Stanley Security Solutions,734050,"36,000.00",
NHS,Glos Hospitals NHS Foundation Trust,14/05/19,External Contracts : Other,Radiography Consultants,Everlight Radiology,734652,"74,374.75",
NHS,Glos Hospitals NHS Foundation Trust,14/05/19,Computer Maintenance,Financial and Procurement Systems Management,Infor (United Kingdom) Limited,734653,"86,527.97",
NHS,Glos Hospitals NHS Foundation Trust,14/05/19,Purchase Computers/Systems,Capital Project Control,XMA Limited,734698,"62,477.86",
NHS,Glos Hospitals NHS Foundation Trust,21/05/19,Unalloacted Income,Income Unallocated,Genmed.me Limited,734746,"323,424.15",
NHS,Glos Hospitals NHS Foundation Trust,14/05/19,NHS Logistics control,Payables - Manual,Supply Chain Coordination Ltd - Consumables,734877,"50,895.83",
NHS,Glos Hospitals NHS Foundation Trust,21/05/19,NHS Logistics control,Payables - Manual,Supply Chain Coordination Ltd - Consumables,734880,"33,611.26",
NHS,Glos Hospitals NHS Foundation Trust,14/05/19,Medical & Surgical Equipment Maintenance Contracts,Radiotherapy - Radiography,Elekta Ltd,734897,"53,312.40",
NHS,Glos Hospitals NHS Foundation Trust,08/05/19,Medical & Surgical Equipment Maintenance Contracts,Radiography,Supply Chain Coordination Ltd - Maint. (201),735186,"-59,627.67",
NHS,Glos Hospitals NHS Foundation Trust,21/05/19,Computer Software / License  Fees,Personnel - HQ,Allocate Software plc,735199,"32,689.20",
NHS,Glos Hospitals NHS Foundation Trust,29/05/19,Computer Software / License  Fees,Smartcare,InterSystems,735333,"73,213.63",
NHS,Glos Hospitals NHS Foundation Trust,21/05/19,Computer Software / License  Fees,Nurse Bank Office,Softcat Ltd,735411,"46,200.00",
NHS,Glos Hospitals NHS Foundation Trust,21/05/19,Purchase Computers/Systems,Capital Project Control,Insight Direct (UK) Limited,735513,"66,810.00",
NHS,Glos Hospitals NHS Foundation Trust,21/05/19,Laboratory Reagents,Cytology - CGH,Chrystal Consulting Limited,735553,"134,079.78",
NHS,Glos Hospitals NHS Foundation Trust,08/05/19,Rates,Rates - GRH,Gloucester City Council,735701,"206,640.00",
NHS,Glos Hospitals NHS Foundation Trust,08/05/19,Rates,Rates - CGH,Cheltenham Borough Council,735712,"89,208.00",
NHS,Glos Hospitals NHS Foundation Trust,08/05/19,Implant Procedures,Cardiology Laboratory,Medtronic Limited,735723,"-106,488.00",
NHS,Glos Hospitals NHS Foundation Trust,08/05/19,Implant Procedures,Cardiology Laboratory,Medtronic Limited,735724,"106,488.00",
NHS,Glos Hospitals NHS Foundation Trust,21/05/19,Medical & Surgical Equip. : Finance & Op. Leases,Leases,GE Capital Equipment Finance Limited,736109,"28,333.92",
NHS,Glos Hospitals NHS Foundation Trust,29/05/19,Colour Connection,Payables - Manual,Colour Connection,736296,"49,682.21",
NHS,Glos Hospitals NHS Foundation Trust,29/05/19,NHS Logistics control,Payables - Manual,Supply Chain Coordination Ltd - Consumables,736305,"52,696.66",
NHS,Glos Hospitals NHS Foundation Trust,29/05/19,Medical & Surgical Equipment Maintenance Contracts,Radiography,Canon Medical Systems Limited,736329,"32,198.60",
NHS,Glos Hospitals NHS Foundation Trust,29/05/19,Contractual Clinical Services,Renal Dialysis,B Braun Avitum UK Limited,736347,"78,475.80",
NHS,Glos Hospitals NHS Foundation Trust,14/05/19,Non - Healthcare - NHS Trusts,Hereford LINAC,HA95059 Wye Valley NHS Trust,736403,"42,675.44",
NHS,Glos Hospitals NHS Foundation Trust,29/05/19,Implant Procedures,Cardiology Laboratory,Medtronic Limited,736404,"59,760.00",
NHS,Glos Hospitals NHS Foundation Trust,29/05/19,X-Ray Equipment : Maintenance,Radiography,Supply Chain Coordination Ltd - Maint. (201),736415,"75,520.50",
NHS,Glos Hospitals NHS Foundation Trust,29/05/19,Medical & Surgical Equipment Maintenance Contracts,Radiography,Supply Chain Coordination Ltd - Maint. (201),736416,"59,827.09",
NHS,Glos Hospitals NHS Foundation Trust,10/05/19,STAFFFlow,Payables - Manual,Liaison Financial SVS Clients A/C,736588,"54,523.66",
NHS,Glos Hospitals NHS Foundation Trust,10/05/19,STAFFFlow,Payables - Manual,Liaison Financial SVS Clients A/C,736589,"107,910.03",
NHS,Glos Hospitals NHS Foundation Trust,10/05/19,STAFFFlow,Payables - Manual,Liaison Financial SVS Clients A/C,736591,"90,634.92",
NHS,Glos Hospitals NHS Foundation Trust,14/05/19,Non - Healthcare NHS Foundation Trust,Director of Nursing,HA90180 2gether NHS Foundation Trust,736602,"75,723.75",
NHS,Glos Hospitals NHS Foundation Trust,14/05/19,Laboratory Reagents,Microbiology - GRH,Chrystal Consulting Limited,736928,"105,950.56",
NHS,Glos Hospitals NHS Foundation Trust,14/05/19,Medical & Surgical Equipment Maintenance Contracts,Radiography,Supply Chain Coordination Ltd - Maint. (201),736965,"59,627.67",
NHS,Glos Hospitals NHS Foundation Trust,21/05/19,Building - External Contracts,Capital Project Control,Kier Infrastructure & Overseas Limited,736974,"127,512.80",
NHS,Glos Hospitals NHS Foundation Trust,29/05/19,Medical & Surgical Equipment Maintenance Contracts,Radiotherapy - Radiography,Supply Chain Coordination Ltd - Maint. (201),737059,"-39,850.72",
NHS,Glos Hospitals NHS Foundation Trust,21/05/19,Telephone Rental,IT Contracts Shared Service,Virgin Media Payments Limited,737143,"41,665.69",
NHS,Glos Hospitals NHS Foundation Trust,29/05/19,Medical & Surgical Equipment Maintenance Contracts,Endoscopy - CGH,Supply Chain Coordination Ltd - Maint. (201),737157,"-28,599.23",
NHS,Glos Hospitals NHS Foundation Trust,21/05/19,Ded Cde 1 - Accom Dep,Pay Deductions,Sovereign Housing Assoc Limited,737732,"27,821.39",
NHS,Glos Hospitals NHS Foundation Trust,17/05/19,STAFFFlow,Payables - Manual,Liaison Financial SVS Clients A/C,737744,"77,342.49",
NHS,Glos Hospitals NHS Foundation Trust,21/05/19,Passthrough Drugs - High Cost Blood Products,Blood Products,Shire Pharmaceuticals Limited,737749,"-76,671.00",
NHS,Glos Hospitals NHS Foundation Trust,21/05/19,Data Lines,Computing - CGH HQ,BT Global Services,737800,"32,774.56",
NHS,Glos Hospitals NHS Foundation Trust,29/05/19,Commercial Sector,Theatre Admin GRH,Genmed.me Limited,738101,"1,568,296.55",
NHS,Glos Hospitals NHS Foundation Trust,24/05/19,Contract : Other External,GHP Contract,Gloucester Healthcare Partnership Limited,738454,"539,002.91",
NHS,Glos Hospitals NHS Foundation Trust,24/05/19,Contract : Other External,GHP Contract,Gloucester Healthcare Partnership Limited,738456,"539,002.91",
NHS,Glos Hospitals NHS Foundation Trust,29/05/19,X-Ray Equipment : Maintenance,Radiography,Supply Chain Coordination Ltd - Maint. (201),738458,"-59,627.67",
NHS,Glos Hospitals NHS Foundation Trust,29/05/19,C.A.P.D. Fluids,CAPD,Baxter Healthcare Limited,738616,"35,253.80",
NHS,Glos Hospitals NHS Foundation Trust,29/05/19,Nursery Voucher Scheme,Pay Deductions,Wider Plan Limited,738859,"63,901.11",
NHS,Glos Hospitals NHS Foundation Trust,24/05/19,Clinical Negligence,Trustwide Finance,HA70362 NHS Litigation Authority,738882,"1,725,824.40",
NHS,Glos Hospitals NHS Foundation Trust,24/05/19,STAFFFlow,Payables - Manual,Liaison Financial SVS Clients A/C,738897,"92,866.58",
NHS,Glos Hospitals NHS Foundation Trust,31/05/19,STAFFFlow,Payables - Manual,Liaison Financial SVS Clients A/C,739320,"85,960.12",
